bitfinex/quotes_BTCUSD_20250129
["timestamp","ask_amount","ask_price","bid_price","bid_amount"]
[1738179705765,0.26623345,103930.0,103830.0,0.075]
[1738179705968,0.24323345,103910.0,103810.0,0.04666275]
[1738179706220,0.243,103910.0,103860.0,0.00048861]
[1738179706455,0.0369512,103920.0,103860.0,0.02025516]
[1738179706675,0.04842,103940.0,103880.0,0.02976655]
[1738179706918,0.04842,103940.0,103880.0,0.01976655]
[1738179707122,0.04842,103940.0,103870.0,0.1253]
[1738179707295,0.04842,103940.0,103870.0,0.15506655]
[1738179707528,0.09323345,103970.0,103870.0,0.1253]
[1738179707734,0.43081824,103950.0,103870.0,0.1253]
[1738179707936,0.023,103920.0,103860.0,0.00048861]
[1738179708145,0.60358479,103920.0,103860.0,0.00048861]
[1738179708366,0.03718465,103910.0,103810.0,0.0809]
[1738179708572,0.15,103880.0,103830.0,0.00014382]
[1738179708785,0.30023345,103870.0,103800.0,6e-05]
[1738179708997,0.33518479,103840.0,103780.0,0.00029568]
[1738179709207,0.023,103820.0,103770.0,0.00029568]
[1738179709414,0.023,103820.0,103750.0,0.01976655]
[1738179709656,0.023,103820.0,103750.0,0.02976655]
[1738179709878,0.02280475,103820.0,103770.0,0.01976655]
[1738179710096,0.0369512,103860.0,103800.0,0.01976655]
[1738179710304,0.0369512,103860.0,103790.0,0.01976655]
[1738179710545,0.33518479,103820.0,103770.0,0.00937683]
[1738179710750,0.63580796,103820.0,103740.0,0.07275136]
[1738179710950,0.38360479,103820.0,103740.0,0.07275136]
[1738179711061,0.15,103810.0,103740.0,0.07289527]
[1738179711680,0.023,103800.0,103740.0,0.07289527]
[1738179712076,0.07142,103800.0,103740.0,0.00014391]
[1738179712279,0.07142,103800.0,103720.0,0.0481]
[1738179712548,0.023,103780.0,103720.0,0.04824405]
[1738179712719,0.023,103780.0,103720.0,0.07738743]
[1738179713196,0.023,103780.0,103730.0,0.02914338]
[1738179713394,0.023,103790.0,103730.0,0.00937683]
[1738179713709,0.04842,103800.0,103740.0,0.01976655]
[1738179713912,0.04417816,103800.0,103770.0,0.10904338]
[1738179714117,0.04417816,103800.0,103780.0,1.5]
[1738179714322,0.04417816,103800.0,103770.0,0.0799]
[1738179714734,0.038563,103830.0,103770.0,0.0789]
[1738179715276,0.023,103800.0,103720.0,1.56786655]
[1738179715526,0.023,103780.0,103720.0,0.0481]
[1738179715877,0.023,103780.0,103690.0,0.00967398]
[1738179716083,0.05996187,103780.0,103710.0,0.00937683]
[1738179716332,0.05996187,103780.0,103730.0,0.00937683]
[1738179716333,0.03696187,103780.0,103730.0,0.00937683]
[1738179716485,0.03696187,103780.0,103730.0,0.0199106]
[1738179716688,0.15,103800.0,103730.0,0.0199106]
[1738179716878,0.15,103800.0,103730.0,1.5199106]
[1738179717088,0.023,103770.0,103730.0,1.50014405]
[1738179717293,0.30189155,103770.0,103730.0,0.00014405]
[1738179717493,0.27889155,103790.0,103730.0,0.00014405]
[1738179717742,0.15,103780.0,103730.0,0.00024893]
[1738179718363,0.023,103770.0,103730.0,0.00024893]
[1738179718698,0.31745455,103830.0,103740.0,0.07684338]
[1738179718887,0.31745455,103830.0,103750.0,0.00937683]
[1738179719189,0.31745455,103830.0,103760.0,0.00937683]
[1738179719423,0.27889155,103810.0,103750.0,0.00937683]
[1738179719605,0.31745455,103830.0,103740.0,0.01987143]
[1738179719838,0.27889155,103750.0,103730.0,0.00014405]
[1738179720051,0.27889155,103750.0,103700.0,0.0801]
[1738179720257,0.023,103740.0,103700.0,0.0801]
[1738179720464,0.27889155,103770.0,103700.0,0.10001063]
[1738179720679,0.29679155,103810.0,103710.0,0.01976655]
[1738179720881,0.27889155,103770.0,103700.0,0.08024408]
[1738179721096,0.023,103740.0,103700.0,0.08024408]
[1738179721400,0.00023345,103780.0,103700.0,0.00014408]
[1738179721401,0.15,103720.0,103700.0,0.00014408]
[1738179721816,0.04422,103740.0,103670.0,0.10206223]
[1738179721817,0.27889155,103710.0,103670.0,0.08229568]
[1738179722031,0.04422,103740.0,103670.0,0.08278249]
[1738179722032,0.27889155,103680.0,103670.0,0.08278249]
[1738179722235,0.27889155,103700.0,103670.0,0.00078249]
[1738179722444,0.27889155,103720.0,103670.0,0.02054904]
[1738179722664,0.32311155,103740.0,103700.0,0.01976655]
[1738179722868,0.32311155,103740.0,103700.0,0.0759]
[1738179723275,0.27889155,103720.0,103670.0,0.00078249]
[1738179723492,0.42889155,103680.0,103670.0,0.00078249]
[1738179723881,0.42889155,103680.0,103640.0,0.00029568]
[1738179724016,0.27889155,103660.0,103640.0,0.00029568]
[1738179724454,0.00048723,103680.0,103660.0,0.01976655]
[1738179724642,0.00048723,103680.0,103650.0,0.01976655]
[1738179724873,0.27937878,103680.0,103640.0,0.00029568]
[1738179725316,0.00048723,103680.0,103640.0,0.00029568]
[1738179725521,0.00048723,103680.0,103660.0,0.01976655]
[1738179725725,0.00048723,103680.0,103670.0,0.01976655]
[1738179725966,0.00048723,103680.0,103670.0,1.5]
[1738179726375,0.00048723,103680.0,103660.0,0.0804]
[1738179726778,0.27937878,103680.0,103660.0,0.0804]
[1738179727131,0.15,103670.0,103640.0,0.00029568]
[1738179728372,0.27897878,103680.0,103640.0,0.00029568]
[1738179728530,8.723e-05,103680.0,103650.0,0.01976655]
[1738179728722,8.723e-05,103680.0,103640.0,0.02006223]
[1738179729117,8.723e-05,103680.0,103640.0,0.00029568]
[1738179729322,8.723e-05,103680.0,103640.0,0.02006223]
[1738179729543,0.15,103650.0,103640.0,0.00029568]
[1738179730165,0.27897878,103680.0,103640.0,0.00029568]
[1738179730384,0.023,103670.0,103640.0,0.00029568]
[1738179730592,8.723e-05,103680.0,103640.0,0.02006223]
[1738179731008,8.723e-05,103680.0,103650.0,0.01976655]
[1738179731420,8.723e-05,103680.0,103670.0,0.01976655]
[1738179731799,8.723e-05,103680.0,103660.0,0.09626655]
[1738179732260,8.723e-05,103680.0,103660.0,0.0765]
[1738179733286,8.723e-05,103680.0,103650.0,0.01976655]
[1738179733760,8.723e-05,103680.0,103660.0,0.01976655]
[1738179733968,8.723e-05,103680.0,103670.0,0.01976655]
[1738179734177,0.00012723,103680.0,103660.0,0.01976655]
[1738179734376,0.00854171,103770.0,103700.0,0.01976655]
[1738179734589,0.30903265,103800.0,103730.0,0.01976655]
[1738179734800,0.00447924,103760.0,103730.0,0.01976655]
[1738179735005,0.04422,103770.0,103740.0,0.09676655]
[1738179735230,0.00437385,103750.0,103740.0,0.09676655]
[1738179735440,0.00437385,103750.0,103740.0,0.077]
[1738179735666,0.04422,103770.0,103740.0,0.0779775]
[1738179735880,0.04422,103770.0,103740.0,0.0781216]
[1738179736104,0.00438819,103760.0,103740.0,0.09788815]
[1738179736311,0.00438819,103760.0,103750.0,0.01976655]
[1738179736522,0.04422,103770.0,103740.0,0.09788815]
[1738179736735,0.00440102,103760.0,103740.0,0.0781216]
[1738179737183,0.15,103750.0,103740.0,0.0011216]
[1738179737393,0.15427099,103750.0,103710.0,0.0757]
[1738179737611,0.15,103730.0,103710.0,0.00014433]
[1738179737817,0.00428916,103740.0,103710.0,0.01991088]
[1738179738135,0.27903265,103800.0,103720.0,0.01976655]
[1738179738341,0.00430752,103730.0,103720.0,0.01976655]
[1738179738583,0.29877584,103800.0,103740.0,0.01976655]
[1738179738783,0.00459836,103790.0,103760.0,0.01976655]
[1738179739208,0.00459836,103790.0,103770.0,0.01976655]
[1738179739408,0.00448866,103780.0,103770.0,0.09486655]
[1738179739623,0.27889155,103850.0,103770.0,0.09486655]
[1738179740043,0.27889155,103850.0,103770.0,0.0751]
[1738179740044,0.15,103820.0,103770.0,0.0751]
[1738179740219,0.023,103810.0,103770.0,0.09486655]
[1738179740422,0.31641294,103850.0,103780.0,0.01976655]
[1738179740689,0.31592471,103850.0,103780.0,0.01976655]
[1738179740845,0.03703316,103850.0,103790.0,0.01976655]
[1738179741051,0.31592471,103850.0,103790.0,0.0468]
[1738179741215,0.31592471,103850.0,103790.0,0.06656655]
[1738179741417,0.15,103840.0,103790.0,0.06656655]
[1738179741616,0.08174139,103850.0,103810.0,0.01976655]
[1738179741860,0.04470823,103850.0,103790.0,0.06656655]
[1738179742475,0.32359978,103850.0,103790.0,0.0468]
[1738179742646,0.15,103810.0,103790.0,0.0468]
[1738179742847,0.023,103800.0,103770.0,0.0751]
[1738179743047,0.15,103790.0,103770.0,0.0751]
[1738179743253,0.31746555,103840.0,103770.0,0.0751]
[1738179743472,0.04426,103850.0,103780.0,0.02073019]
[1738179743671,0.04426,103850.0,103790.0,0.01976655]
[1738179743875,0.00052823,103850.0,103810.0,0.01976655]
[1738179744095,0.27889155,103840.0,103790.0,0.01976655]
[1738179744319,0.15,103830.0,103770.0,0.09486655]
[1738179744525,0.023,103800.0,103770.0,0.0751]
[1738179744857,0.15,103790.0,103770.0,0.0751]
[1738179745059,0.15,103770.0,103740.0,0.0769]
[1738179745743,0.15,103750.0,103700.0,0.01976655]
[1738179745869,0.15,103750.0,103650.0,0.00029778]
[1738179745870,0.15,103730.0,103690.0,0.01976655]
[1738179746277,0.023,103720.0,103680.0,0.01976655]
[1738179746697,0.15,103710.0,103650.0,0.0012622]
[1738179746897,0.15,103710.0,103650.0,0.00029778]
[1738179747102,0.15,103690.0,103650.0,0.00029778]
[1738179747308,0.023,103680.0,103650.0,0.00078501]
[1738179747475,0.023,103660.0,103650.0,0.00078501]
[1738179747675,0.45189155,103660.0,103650.0,0.00078501]
[1738179748195,0.15,103650.0,103630.0,0.00029568]
[1738179748413,0.00633333,103600.0,103560.0,0.00029631]
[1738179748685,0.0009656,103590.0,103500.0,0.27774143]
[1738179748879,0.27889155,103570.0,103530.0,0.003864]
[1738179749083,0.27889155,103550.0,103510.0,0.1314]
[1738179749283,0.27889155,103550.0,103510.0,0.0314]
[1738179749805,0.27889155,103530.0,103510.0,0.0314]
[1738179750222,0.27937813,103550.0,103510.0,0.0314]
[1738179750430,0.00048658,103550.0,103510.0,0.0314]
[1738179750835,0.01,103560.0,103510.0,0.0314]
[1738179751068,0.32311155,103590.0,103520.0,0.537129]
[1738179751292,0.04422,103590.0,103520.0,0.537129]
[1738179751500,0.27889155,103570.0,103510.0,0.00048658]
[1738179751708,0.27889155,103570.0,103530.0,0.01008195]
[1738179751909,0.27889155,103590.0,103530.0,0.01008195]
[1738179752094,0.27889155,103590.0,103510.0,0.00048658]
[1738179752322,0.27889155,103590.0,103520.0,0.1249]
[1738179752731,0.27889155,103550.0,103520.0,0.1249]
[1738179753217,0.28889155,103570.0,103510.0,0.00048658]
[1738179753433,0.01,103580.0,103510.0,0.00048658]
[1738179753718,0.27889155,103610.0,103520.0,0.118703]
[1738179753921,0.27889155,103610.0,103500.0,0.14939663]
[1738179753922,0.28889155,103610.0,103500.0,0.14939663]
[1738179754155,0.28937844,103610.0,103490.0,0.29889155]
[1738179754356,0.27937844,103610.0,103510.0,0.27889155]
[1738179754558,0.27937844,103610.0,103530.0,0.27889155]
[1738179754559,0.00048689,103610.0,103530.0,0.27889155]
[1738179754731,0.00048689,103610.0,103520.0,0.02]
[1738179755076,0.00048689,103610.0,103510.0,0.40689155]
[1738179755077,0.27937844,103610.0,103510.0,0.40689155]
[1738179755282,0.27889155,103590.0,103490.0,0.27889155]
[1738179755489,0.27889155,103590.0,103530.0,1.5]
[1738179755695,0.27937844,103610.0,103490.0,0.29889155]
[1738179755900,0.00048689,103610.0,103520.0,0.15]
[1738179756143,0.27937844,103610.0,103520.0,0.15]
[1738179756346,0.27889155,103570.0,103530.0,0.0491]
[1738179756966,0.27889155,103570.0,103490.0,0.1247]
[1738179757392,0.14779979,103630.0,103510.0,0.15]
[1738179757393,0.28889155,103610.0,103510.0,0.15]
[1738179757800,0.27937874,103630.0,103530.0,0.15]
[1738179758005,0.33359874,103630.0,103560.0,1.5]
[1738179758217,0.28889155,103610.0,103540.0,0.0484]
[1738179758425,4e-05,103580.0,103540.0,0.0484]
[1738179758652,0.27889155,103570.0,103540.0,0.0484]
[1738179758874,4e-05,103580.0,103540.0,0.0484]
[1738179759085,0.27889155,103570.0,103490.0,0.1276]
[1738179759291,0.27889155,103550.0,103490.0,0.1276]
[1738179759492,0.27889155,103570.0,103490.0,0.1276]
[1738179759913,0.27889155,103550.0,103490.0,0.1276]
[1738179760126,0.27889155,103530.0,103490.0,0.0457]
[1738179760329,0.27889155,103510.0,103450.0,0.0474]
[1738179760539,0.28889155,103510.0,103450.0,0.0474]
[1738179760737,0.27889155,103510.0,103450.0,0.0474]
[1738179761139,0.28889155,103510.0,103450.0,0.0474]
[1738179761347,0.27889155,103490.0,103450.0,0.0474]
[1738179761782,0.27889155,103490.0,103420.0,0.09196667]
[1738179761783,0.27889155,103470.0,103420.0,0.09196667]
[1738179761989,0.27889155,103470.0,103420.0,0.13064867]
[1738179762193,0.30189155,103490.0,103420.0,0.13064867]
[1738179762397,0.27889155,103470.0,103420.0,0.05534867]
[1738179762608,0.023,103490.0,103420.0,0.05534867]
[1738179762821,0.01,103490.0,103420.0,0.05534867]
[1738179763029,0.15,103510.0,103430.0,0.27889155]
[1738179763234,0.00048597,103490.0,103430.0,0.27889155]
[1738179763641,0.00052597,103490.0,103430.0,0.27889155]
[1738179763816,0.00052597,103490.0,103420.0,0.20534867]
[1738179764281,0.16052597,103490.0,103420.0,0.05534867]
[1738179764496,0.033,103470.0,103420.0,0.05534867]
[1738179764708,0.15052597,103490.0,103420.0,0.01666667]
[1738179764918,0.01,103480.0,103420.0,0.05534767]
[1738179765127,0.00052597,103490.0,103420.0,0.05534767]
[1738179765338,0.00052597,103490.0,103480.0,1.5]
[1738179765763,0.00052597,103490.0,103420.0,0.05534767]
[1738179765985,0.01,103480.0,103420.0,0.05534767]
[1738179766194,0.00052597,103490.0,103420.0,0.05534767]
[1738179766409,0.00052597,103490.0,103420.0,1.55534767]
[1738179766410,0.01,103480.0,103420.0,1.55534767]
[1738179766635,0.033,103470.0,103420.0,1.51666667]
[1738179766847,0.01,103470.0,103420.0,0.01666667]
[1738179767059,0.01,103460.0,103420.0,0.01666667]
[1738179767285,0.01,103440.0,103420.0,0.01666667]
[1738179767506,0.15,103430.0,103420.0,0.01666667]
[1738179767934,0.01,103440.0,103420.0,0.01666667]
[1738179768137,0.27889155,103460.0,103420.0,0.01666667]
[1738179768138,0.01,103430.0,103420.0,0.01666667]
[1738179768358,0.15,103430.0,103420.0,0.01666667]
[1738179768801,0.15048567,103430.0,103420.0,0.01666667]
[1738179769019,0.15048567,103430.0,103410.0,0.0001411]
[1738179769020,0.43023155,103420.0,103410.0,0.0001411]
[1738179769228,0.43023155,103420.0,103410.0,1e-08]
[1738179769436,0.15,103410.0,103380.0,0.0002022]
[1738179769648,0.01,103350.0,103310.0,0.0001422]
[1738179769863,0.42889155,103350.0,103310.0,0.0001422]
[1738179770102,0.15,103350.0,103310.0,0.0001422]
[1738179770569,0.01,103370.0,103310.0,0.0001422]
[1738179770778,0.27889155,103390.0,103310.0,0.0001422]
[1738179770986,0.01,103350.0,103310.0,0.0001422]
[1738179771448,0.02797477,103360.0,103310.0,0.0001422]
[1738179771874,4e-05,103350.0,103310.0,0.0001422]
[1738179772083,0.01004,103350.0,103310.0,0.0001422]
[1738179772288,0.42893155,103350.0,103310.0,0.0001422]
[1738179772502,0.16004,103350.0,103310.0,0.0001422]
[1738179772713,4e-05,103350.0,103290.0,0.29546979]
[1738179773147,0.01,103330.0,103290.0,0.01657824]
[1738179773568,4e-05,103350.0,103290.0,0.01657824]
[1738179773773,4e-05,103350.0,103290.0,0.29546979]
[1738179774409,0.00052507,103350.0,103300.0,0.15]
[1738179774616,0.00052507,103350.0,103340.0,0.15]
[1738179774832,4e-05,103440.0,103380.0,0.27889155]
[1738179775038,4e-05,103440.0,103380.0,0.36189155]
[1738179775248,0.01,103430.0,103380.0,0.083]
[1738179775452,0.01,103420.0,103380.0,0.083]
[1738179775669,0.01,103430.0,103380.0,0.083]
[1738179776304,4e-05,103440.0,103380.0,0.00014438]
[1738179776503,4e-05,103440.0,103380.0,0.27903593]
[1738179776929,4e-05,103440.0,103400.0,0.27889155]
[1738179777130,4e-05,103440.0,103380.0,0.27903593]
[1738179777339,4e-05,103440.0,103380.0,1.77903593]
[1738179777570,4e-05,103440.0,103380.0,0.00014438]
[1738179777776,0.01,103430.0,103380.0,0.00014438]
[1738179777987,0.01,103420.0,103380.0,0.00014438]
[1738179778188,0.01,103390.0,103380.0,0.00014438]
[1738179778451,0.15,103420.0,103380.0,0.00014438]
[1738179778452,0.01,103410.0,103380.0,0.00014438]
[1738179779130,0.01,103400.0,103380.0,0.00014438]
[1738179779629,0.01,103410.0,103380.0,0.00014438]
[1738179779884,0.01,103400.0,103380.0,0.00014438]
[1738179780134,0.023,103410.0,103380.0,0.00014438]
[1738179780380,0.01,103350.0,103340.0,0.0001421]
[1738179780630,0.15,103360.0,103340.0,0.00028651]
[1738179780879,0.01,103300.0,103280.0,0.00029904]
[1738179781664,0.01,103320.0,103280.0,0.00029904]
[1738179782148,0.012973,103300.0,103280.0,0.00029904]
[1738179782629,0.01,103290.0,103280.0,0.00029904]
[1738179782859,0.012973,103300.0,103280.0,0.00029904]
[1738179783106,0.002973,103300.0,103280.0,0.00029904]
[1738179783345,0.002973,103300.0,103260.0,0.00188898]
[1738179783595,0.002973,103300.0,103260.0,0.28078053]
[1738179783808,0.002973,103300.0,103280.0,0.27889155]
[1738179784037,0.00018534,103320.0,103290.0,0.792617]
[1738179784038,0.02844391,103320.0,103290.0,0.792617]
[1738179784250,0.02844391,103320.0,103310.0,1.65]
[1738179784460,0.01210744,103330.0,103320.0,0.27889155]
[1738179784675,0.0451,103420.0,103330.0,0.15]
[1738179784881,4e-05,103440.0,103350.0,0.27889155]
[1738179785095,4e-05,103440.0,103380.0,0.0828]
[1738179785538,4e-05,103440.0,103390.0,0.27889155]
[1738179785763,4e-05,103440.0,103380.0,0.0828]
[1738179785964,4e-05,103440.0,103390.0,1.5]
[1738179786169,4e-05,103440.0,103390.0,0.27889155]
[1738179786612,0.01,103470.0,103410.0,0.27889155]
[1738179786820,0.01,103470.0,103400.0,1.5]
[1738179787066,0.28889155,103480.0,103390.0,0.27889155]
[1738179787312,0.15,103450.0,103380.0,0.0828]
[1738179787555,0.16,103450.0,103390.0,0.01]
[1738179787807,0.01,103440.0,103390.0,0.01]
[1738179788033,0.15,103450.0,103390.0,0.01]
[1738179788241,0.01,103460.0,103390.0,0.01]
[1738179788453,0.32311155,103480.0,103390.0,0.01]
[1738179788454,0.16,103470.0,103390.0,0.28889155]
[1738179788660,0.01,103450.0,103390.0,0.01]
[1738179789144,0.01048087,103460.0,103390.0,0.28889155]
[1738179789375,4e-05,103440.0,103390.0,0.01]
[1738179789601,0.01004,103440.0,103390.0,0.01]
[1738179789825,0.15,103410.0,103390.0,0.01]
[1738179790039,0.27889155,103400.0,103390.0,0.01]
[1738179790335,0.30189155,103400.0,103390.0,0.01]
[1738179790589,0.45189155,103400.0,103390.0,0.01]
[1738179790799,0.01,103350.0,103300.0,0.0001423]
[1738179791217,0.01,103330.0,103300.0,0.00062737]
[1738179791429,0.01,103320.0,103300.0,0.00062737]
[1738179791635,0.01,103310.0,103300.0,0.00062737]
[1738179792056,0.01,103350.0,103300.0,0.00062737]
[1738179792276,0.1264,103400.0,103300.0,0.15062737]
[1738179792489,0.01,103380.0,103310.0,0.27889155]
[1738179792701,0.01,103390.0,103320.0,0.142057]
[1738179792959,0.01,103380.0,103300.0,1.69662737]
[1738179793208,0.16,103380.0,103300.0,1.69662737]
[1738179793428,0.01,103380.0,103310.0,0.27889155]
[1738179793639,0.02209931,103370.0,103300.0,0.19662737]
[1738179793845,0.01,103360.0,103310.0,1.5]
[1738179794046,0.02209931,103370.0,103300.0,0.04662737]
[1738179794278,0.0119787,103370.0,103310.0,0.15]
[1738179794484,0.0119787,103370.0,103300.0,0.32551892]
[1738179794696,0.02854811,103350.0,103300.0,0.32551892]
[1738179794905,0.02854811,103350.0,103310.0,0.00096752]
[1738179795116,0.02854811,103350.0,103320.0,0.27889155]
[1738179795336,0.02854811,103350.0,103330.0,1.5009674]
[1738179795563,0.02854811,103350.0,103310.0,0.15]
[1738179795784,0.02854811,103350.0,103320.0,0.00096761]
[1738179796211,0.0109656,103340.0,103300.0,0.00062737]
[1738179796432,0.01,103330.0,103300.0,0.00062737]
[1738179796648,0.02854811,103340.0,103300.0,0.00062737]
[1738179797093,0.1509656,103360.0,103300.0,0.28048665]
[1738179797094,0.02341979,103320.0,103300.0,0.28048665]
[1738179797318,0.02341979,103320.0,103300.0,0.0015951]
[1738179797534,0.02341979,103320.0,103300.0,0.00159521]
[1738179797750,0.02341979,103320.0,103300.0,0.28048676]
[1738179797976,0.02341979,103320.0,103300.0,0.00159521]
[1738179798395,4e-05,103340.0,103310.0,0.15]
[1738179798611,4e-05,103340.0,103320.0,0.27985893]
[1738179798831,0.00029883,103370.0,103340.0,0.27889155]
[1738179799046,0.00029883,103370.0,103350.0,0.00096717]
[1738179799281,0.00029883,103370.0,103340.0,1.5]
[1738179799487,0.00029883,103370.0,103350.0,0.00096722]
[1738179799927,0.00029883,103370.0,103360.0,0.42889155]
[1738179800141,0.00029883,103370.0,103360.0,1.92889155]
[1738179800355,0.00029883,103370.0,103360.0,1.50038131]
[1738179800599,0.00029883,103370.0,103360.0,0.00038131]
[1738179801062,0.02426443,103370.0,103360.0,0.00038131]
[1738179801287,0.45319598,103370.0,103360.0,0.00038131]
[1738179801493,0.01,103340.0,103300.0,0.00111006]
[1738179801705,0.01,103340.0,103300.0,0.0001423]
[1738179801954,0.01,103340.0,103300.0,0.00062737]
[1738179802164,0.01,103320.0,103300.0,0.00062737]
[1738179802385,0.0009656,103310.0,103300.0,0.00062737]
[1738179803027,0.45285715,103310.0,103300.0,0.00062737]
[1738179803231,0.27889155,103310.0,103280.0,0.0001421]
[1738179803439,0.01,103290.0,103280.0,0.0001421]
[1738179803649,0.15,103300.0,103280.0,0.0001421]
[1738179803875,0.01,103290.0,103280.0,0.0001421]
[1738179804082,0.00048021,103310.0,103280.0,0.0001421]
[1738179804294,0.00048021,103310.0,103280.0,0.28000156]
[1738179804506,0.00048021,103310.0,103300.0,0.27889155]
[1738179804937,0.00048021,103310.0,103280.0,0.27903365]
[1738179805152,0.00048021,103310.0,103290.0,0.00096767]
[1738179805600,0.00048021,103310.0,103280.0,0.27903365]
[1738179805802,0.00048021,103310.0,103290.0,0.3639916]
[1738179806011,0.00048021,103310.0,103290.0,0.0009676]
[1738179806239,0.00048021,103310.0,103300.0,0.27889155]
[1738179806450,0.00048021,103310.0,103280.0,0.0001421]
[1738179806863,0.00048021,103310.0,103280.0,0.00110981]
[1738179807487,0.01048021,103310.0,103280.0,0.0001421]
[1738179807904,0.01,103290.0,103280.0,0.0001421]
[1738179808171,0.1509656,103300.0,103280.0,0.0001421]
[1738179808798,0.15,103300.0,103280.0,0.0001421]
[1738179809020,0.02348021,103310.0,103280.0,0.0001421]
[1738179809021,0.0009656,103290.0,103280.0,0.0001421]
[1738179809465,0.00144581,103310.0,103280.0,0.0001421]
[1738179809673,0.02864746,103290.0,103280.0,0.0001421]
[1738179809886,0.45753901,103290.0,103280.0,0.0001421]
[1738179810099,0.15,103280.0,103260.0,0.00188898]
[1738179810316,0.0009656,103270.0,103260.0,0.00188898]
[1738179810746,0.023,103280.0,103260.0,0.00188898]
[1738179810955,0.02864746,103290.0,103260.0,0.00188898]
[1738179811166,0.1509656,103280.0,103260.0,0.0018395]
[1738179811385,0.42889155,103270.0,103260.0,0.005483]
[1738179812277,0.42889155,103270.0,103260.0,0.00432954]
[1738179812490,0.01,103250.0,103220.0,0.0009687]
[1738179812733,0.01,103240.0,103210.0,0.03541746]
[1738179812945,0.01,103220.0,103210.0,0.02993446]
[1738179813589,0.01,103230.0,103210.0,0.02993446]
[1738179813798,0.27889155,103270.0,103210.0,0.02993446]
[1738179814018,0.01,103240.0,103210.0,0.02993446]
[1738179814230,0.27937147,103270.0,103210.0,0.02993446]
[1738179814231,0.01,103250.0,103220.0,0.00048733]
[1738179814446,0.01047992,103270.0,103220.0,0.00048722]
[1738179814714,0.01,103260.0,103220.0,0.00048722]
[1738179814924,0.01,103240.0,103210.0,0.02993446]
[1738179815131,0.01,103230.0,103210.0,0.02993446]
[1738179815337,0.01,103230.0,103180.0,0.27889155]
[1738179815544,0.01121086,103250.0,103200.0,0.27889155]
[1738179815757,0.04063845,103260.0,103200.0,0.27889155]
[1738179815971,0.04063845,103260.0,103220.0,0.27889155]
[1738179816185,0.04063845,103220.0,103200.0,0.27889155]
[1738179816396,0.04063845,103220.0,103210.0,0.145334]
[1738179816631,0.04063845,103220.0,103210.0,0.284404]
[1738179817058,0.04063845,103220.0,103210.0,0.145334]
[1738179817283,0.04063845,103220.0,103200.0,0.27889155]
[1738179817495,0.193783,103210.0,103190.0,0.038761]
[1738179817706,0.00047962,103220.0,103200.0,0.145344]
[1738179817917,0.33956962,103220.0,103190.0,0.37792]
[1738179818132,0.00047962,103220.0,103190.0,0.038761]
[1738179818343,0.00047962,103220.0,103200.0,0.47268555]
[1738179818551,0.15745848,103210.0,103190.0,0.038761]
[1738179818760,0.145348,103200.0,103190.0,0.038761]
[1738179818972,0.145367,103190.0,103160.0,0.145399]
[1738179819209,0.532979,103200.0,103170.0,0.145391]
[1738179819421,0.145391,103170.0,103130.0,0.46791091]
[1738179819636,0.01,103200.0,103150.0,0.27398791]
[1738179819637,0.01,103190.0,103150.0,0.27398791]
[1738179819875,0.145385,103180.0,103150.0,0.41939691]
[1738179820091,0.145396,103170.0,103140.0,1.684213]
[1738179820303,0.04072621,103180.0,103140.0,0.03878]
[1738179820536,0.04072621,103180.0,103100.0,0.09296]
[1738179820537,0.145445,103140.0,103100.0,0.09296]
[1738179820755,0.01121178,103170.0,103110.0,0.27398791]
[1738179820962,0.339315,103150.0,103120.0,0.184249]
[1738179821261,0.01011616,103130.0,103110.0,1.91946091]
[1738179821503,0.01011616,103130.0,103110.0,1.878234]
[1738179821734,0.01011616,103130.0,103120.0,0.145461]
[1738179821961,0.01059519,103130.0,103120.0,0.145461]
[1738179822169,0.01059519,103130.0,103110.0,0.33942]
[1738179822379,0.145461,103120.0,103110.0,0.038794]
[1738179822592,0.33945,103110.0,103080.0,0.0001425]
[1738179822803,0.155503,103090.0,103080.0,0.0001425]
[1738179823061,0.339503,103100.0,103080.0,0.0001425]
[1738179823579,0.145503,103090.0,103080.0,0.0001425]
[1738179823845,0.155503,103090.0,103080.0,0.0001425]
[1738179824100,0.29671555,103090.0,103080.0,5e-07]
[1738179824375,0.33658821,103090.0,103080.0,5e-07]
[1738179824861,0.20658821,103090.0,103080.0,5e-07]
[1738179825115,0.35658821,103090.0,103080.0,5e-07]
[1738179825339,0.145582,103040.0,103000.0,0.2117172]
[1738179825556,0.194061,103060.0,103030.0,0.145588]
[1738179825772,0.339648,103050.0,103020.0,0.145601]
[1738179825982,0.145567,103050.0,103010.0,0.232983]
[1738179826190,0.155576,103040.0,103010.0,0.038829]
[1738179826407,0.339692,103040.0,103010.0,0.145615]
[1738179826619,0.00047815,103040.0,103010.0,0.145615]
[1738179826832,0.00047815,103040.0,103020.0,0.339738]
[1738179827043,0.00047815,103040.0,103020.0,0.145602]
[1738179827254,7.815e-05,103040.0,103020.0,0.1456]
[1738179827521,7.815e-05,103040.0,103030.0,0.145588]
[1738179827738,7.815e-05,103040.0,103030.0,0.529652]
[1738179827962,7.815e-05,103040.0,103030.0,0.53916603]
[1738179828216,0.145503,103100.0,103050.0,0.19407]
[1738179828439,0.145503,103100.0,103070.0,0.14553]
[1738179828651,0.339518,103090.0,103050.0,0.33962]
[1738179828880,0.145508,103090.0,103060.0,0.339596]
[1738179829089,0.145533,103070.0,103040.0,0.379659]
[1738179829302,0.145523,103080.0,103060.0,1.5]
[1738179829521,0.23226358,103090.0,103070.0,0.145528]
[1738179829522,0.02825658,103090.0,103070.0,0.145528]
[1738179829733,0.01212897,103110.0,103100.0,0.145489]
[1738179830166,0.14541,103160.0,103110.0,0.193967]
[1738179830383,0.145421,103150.0,103110.0,0.193949]
[1738179830595,0.145421,103150.0,103090.0,0.35365113]
[1738179830596,0.145469,103120.0,103090.0,0.145493]
[1738179830811,0.349405,103130.0,103090.0,0.145496]
[1738179831027,0.155447,103130.0,103100.0,0.145482]
[1738179831242,0.193929,103140.0,103100.0,0.145482]
[1738179831243,0.543283,103140.0,103100.0,0.145482]
[1738179831440,0.01,103120.0,103090.0,1.5]
[1738179831666,0.193969,103110.0,103070.0,0.19404]
[1738179831869,0.01,103100.0,103070.0,0.14553]
[1738179832111,0.155506,103090.0,103050.0,0.339615]
[1738179832329,0.01,103080.0,103060.0,0.145544]